bitfinex/quotes_SOLUSD_20240614
["timestamp","ask_amount","ask_price","bid_price","bid_amount"]
[1718351314872,6.15,147.81,147.74,6.15]
[1718351315056,6.15,147.81,147.75,6.15]
[1718351315375,12.64,147.81,147.75,6.15]
[1718351316571,12.64,147.81,147.76,6.15]
[1718351316953,12.64,147.81,147.72,21.53626573]
[1718351317158,12.64,147.81,147.73,65.17]
[1718351317372,12.64,147.81,147.76,6.15]
[1718351318579,12.64,147.81,147.73,65.0]
[1718351318781,12.64,147.81,147.76,6.15]
[1718351319681,12.64,147.81,147.73,65.0]
[1718351320073,12.64,147.81,147.76,6.15]
[1718351320274,12.64,147.81,147.73,65.0]
[1718351320663,12.64,147.81,147.76,6.15]
[1718351321189,12.64,147.81,147.73,65.0]
[1718351321396,12.64,147.81,147.76,6.15]
[1718351323083,12.64,147.81,147.73,65.0]
[1718351323294,12.64,147.81,147.75,6.15]
[1718351323797,8.7835,147.8,147.73,20.0]
[1718351324086,6.15,147.79,147.73,6.15]
[1718351325260,2.6335,147.8,147.73,6.15]
[1718351326668,2.6335,147.8,147.74,6.15]
[1718351327966,2.6335,147.8,147.75,6.15]
[1718351328371,2.6335,147.8,147.76,6.15]
[1718351331504,2.6335,147.8,147.72,44.0413458]
[1718351331695,2.6335,147.8,147.75,6.15]
[1718351332285,2.6335,147.8,147.73,45.0]
[1718351332486,2.6335,147.8,147.75,6.15]
[1718351337207,2.6335,147.8,147.73,45.0]
[1718351337511,2.6335,147.8,147.75,6.15]
[1718351340522,6.49,147.81,147.76,6.15]
[1718351340708,6.49,147.81,147.73,65.36]
[1718351340709,6.15,147.83,147.77,6.15]
[1718351340906,2.6335,147.84,147.76,6.15]
[1718351341118,6.15,147.82,147.76,6.15]
[1718351341305,6.15,147.83,147.76,6.15]
[1718351342323,2.8035,147.84,147.76,6.15]
[1718351342533,6.32,147.83,147.76,6.15]
[1718351342728,6.15,147.82,147.76,6.15]
[1718351344125,6.15,147.82,147.73,66.53661111]
[1718351344302,6.15,147.82,147.76,6.15]
[1718351345031,0.17,147.83,147.76,6.15]
[1718351345325,2.6335,147.84,147.78,6.15]
[1718351345501,2.6335,147.84,147.77,6.15]
[1718351345706,6.15,147.82,147.76,6.15]
[1718351346404,6.15,147.83,147.77,6.15]
[1718351346720,2.8035,147.84,147.77,6.15]
[1718351347021,6.15,147.83,147.77,6.15]
[1718351350011,2.6335,147.84,147.77,6.15]
[1718351350219,2.6335,147.84,147.78,6.15]
[1718351350617,8.7835,147.84,147.78,6.15]
[1718351353837,8.7835,147.84,147.74,35.7672]
[1718351354038,8.7835,147.84,147.78,6.15]
[1718351354738,2.6335,147.84,147.78,6.15]
[1718351354942,8.7835,147.84,147.78,6.15]
[1718351355823,6.15,147.83,147.77,6.15]
[1718351357525,6.15,147.82,147.76,6.15]
[1718351358352,6.15,147.82,147.74,15.0672]
[1718351358557,6.15,147.82,147.75,14.27516339]
[1718351358768,6.15,147.82,147.76,6.15]
[1718351359233,6.15,147.82,147.74,15.0672]
[1718351359433,6.15,147.82,147.76,6.15]
[1718351360123,6.15,147.81,147.76,6.15]
[1718351362536,0.34,147.83,147.76,6.15]
[1718351362844,6.15,147.82,147.76,6.15]
[1718351363718,0.11240067,147.81,147.76,6.15]
[1718351364422,0.11240067,147.81,147.74,15.0672]
[1718351364636,0.11240067,147.81,147.75,8.1249869]
[1718351364818,0.11240067,147.81,147.76,6.15]
[1718351366561,0.11240067,147.81,147.74,15.0672]
[1718351366737,0.11240067,147.81,147.76,6.15]
[1718351375350,0.11240067,147.81,147.78,6.15]
[1718351375555,0.11240067,147.81,147.77,6.15]
[1718351376055,0.11240067,147.81,147.76,6.15]
[1718351376255,0.11240067,147.81,147.77,8.124718]
[1718351376642,0.11240067,147.81,147.76,6.15]
[1718351378644,6.26240067,147.81,147.75,6.15]
[1718351378832,6.26240067,147.81,147.76,8.12512326]
[1718351380336,6.26240067,147.81,147.75,6.15]
[1718351380549,6.26240067,147.81,147.76,8.12517347]
[1718351381255,6.26240067,147.81,147.75,6.15]
[1718351381455,6.26240067,147.81,147.76,8.12512193]
[1718351383247,0.11240067,147.81,147.76,8.12512193]
[1718351383447,6.15,147.8,147.73,8.12512193]
[1718351383747,6.15,147.8,147.74,34.27512193]
[1718351383949,8.7835,147.79,147.72,20.0]
[1718351384152,8.7835,147.79,147.73,14.27614488]
[1718351384379,8.7835,147.79,147.74,8.12614488]
[1718351384869,0.11240067,147.78,147.72,20.0]
[1718351385042,0.11240067,147.78,147.73,8.12655919]
[1718351388970,9.1618,147.89,147.77,51.11]
[1718351389269,359.7,147.93,147.86,6.15]
[1718351389270,9.2742,147.93,147.86,6.15]
[1718351389647,9.2742,147.93,147.81,20.36]
[1718351389962,6.986066,147.87,147.82,8.120791]
[1718351390161,6.986066,147.87,147.81,6.15]
[1718351390467,0.836066,147.87,147.84,6.15]
[1718351390965,0.836066,147.87,147.85,6.15]
[1718351391852,0.836066,147.87,147.82,23.0329]
[1718351392054,0.836066,147.87,147.86,26.51]
[1718351392256,0.836066,147.87,147.86,71.68]
[1718351392465,0.836066,147.87,147.86,71.85]
[1718351394148,0.836066,147.87,147.86,51.49]
[1718351394347,0.836066,147.87,147.83,20.17]
[1718351394547,0.836066,147.87,147.86,6.15]
[1718351396167,0.836066,147.87,147.83,20.0]
[1718351396360,0.836066,147.87,147.85,6.15]
[1718351397071,0.836066,147.87,147.8,20.36]
[1718351397373,0.836066,147.87,147.83,6.15]
[1718351398779,0.836066,147.87,147.82,6.15]
[1718351399654,0.836066,147.87,147.78,38.6671]
[1718351399950,0.836066,147.87,147.82,6.15]
[1718351400378,0.836066,147.87,147.83,6.15]
[1718351400581,0.836066,147.87,147.82,6.15]
[1718351401257,0.836066,147.87,147.77,20.36]
[1718351401258,6.5614,147.86,147.77,20.36]
[1718351401459,6.15,147.84,147.75,16.64611938]
[1718351401666,6.15,147.81,147.71,15.4726]
[1718351401856,6.15,147.81,147.76,6.15]
[1718351402175,6.15,147.81,147.73,1.17447366]
[1718351402474,6.15,147.81,147.75,6.15]
[1718351402789,6.15,147.81,147.76,6.15]
[1718351403852,6.15,147.82,147.76,6.15]
[1718351404380,0.17,147.84,147.75,22.8642]
[1718351404558,6.32,147.84,147.78,6.15]
[1718351404758,0.17,147.84,147.78,6.15]
[1718351404959,6.15,147.84,147.78,6.15]
[1718351405161,6.15,147.83,147.77,6.15]
[1718351405358,6.15,147.82,147.76,6.15]
[1718351407078,6.15,147.83,147.77,6.15]
[1718351407583,6.32,147.84,147.78,6.15]
[1718351407878,0.17,147.84,147.78,6.15]
[1718351408076,6.32,147.84,147.78,6.15]
[1718351408782,0.34,147.85,147.78,6.15]
[1718351409089,6.15,147.84,147.78,6.15]
[1718351409495,6.5614,147.86,147.8,6.15]
[1718351409666,6.5614,147.86,147.81,6.15]
[1718351410357,6.5614,147.86,147.82,6.15]
[1718351410764,6.5614,147.86,147.81,6.15]
[1718351411567,6.49,147.85,147.79,6.15]
[1718351411900,6.15,147.84,147.78,6.15]
[1718351415665,6.49,147.83,147.77,6.15]
[1718351415873,6.15,147.82,147.76,6.15]
[1718351416378,6.15,147.83,147.77,6.15]
[1718351419405,6.15,147.8,147.71,21.6535]
[1718351419605,6.15,147.79,147.71,15.4726]
[1718351419780,6.15,147.78,147.72,6.15]
[1718351420471,6.15,147.78,147.71,15.4726]
[1718351420981,6.15,147.78,147.72,6.15]
[1718351421814,6.15,147.78,147.73,6.15]
[1718351422506,0.17,147.79,147.73,6.15]
[1718351422710,6.32,147.79,147.73,6.15]
[1718351423806,6.6459,147.8,147.72,20.32]
[1718351423983,6.6459,147.8,147.76,6.15]
[1718351424377,6.6459,147.8,147.75,6.15]
[1718351425006,0.17,147.79,147.74,6.15]
[1718351425211,6.32,147.79,147.73,6.15]
[1718351426585,0.17,147.79,147.73,6.15]
[1718351426784,0.17,147.79,147.74,6.15]
[1718351428898,0.34,147.79,147.7,52.74005795]
[1718351429104,0.51,147.79,147.73,6.15]
[1718351429301,0.34,147.79,147.73,6.15]
[1718351430600,0.34,147.79,147.74,6.15]
[1718351431115,0.17,147.79,147.74,6.15]
[1718351431503,6.6459,147.8,147.74,6.15]
[1718351433618,6.6459,147.8,147.75,6.15]
[1718351433816,8.8959,147.83,147.77,6.15]
[1718351434517,8.8959,147.83,147.76,6.15]
[1718351434518,6.15,147.82,147.76,6.15]
[1718351434819,6.15,147.81,147.76,6.15]
[1718351437409,0.17,147.8,147.71,20.0]
[1718351437603,0.17,147.8,147.75,6.15]
[1718351439605,6.15,147.79,147.71,20.0]
[1718351439923,6.15,147.79,147.73,6.15]
[1718351440711,6.49,147.8,147.74,6.15]
[1718351440896,0.34,147.8,147.75,6.15]
[1718351441332,0.17,147.8,147.75,6.15]
[1718351441521,6.66,147.81,147.72,2.5047]
[1718351441709,6.66,147.81,147.76,6.15]
[1718351441908,0.51,147.81,147.76,6.15]
[1718351442229,6.66,147.81,147.76,6.15]
[1718351443322,0.34,147.81,147.76,6.15]
[1718351443525,0.17,147.81,147.77,6.15]
[1718351443706,0.51,147.82,147.77,6.15]
[1718351446511,2.7459,147.83,147.76,20.32]
[1718351446718,2.7459,147.83,147.8,6.15]
[1718351447025,6.4413,147.84,147.8,6.15]
[1718351447226,10.050966,147.87,147.77,71.47]
[1718351447528,16.200966,147.87,147.82,6.15]
[1718351448323,10.050966,147.87,147.82,6.15]
[1718351448645,0.17,147.86,147.82,6.15]
[1718351449632,0.17,147.86,147.81,6.15]
[1718351449941,6.32,147.86,147.77,71.47]
[1718351450114,6.32,147.86,147.8,6.15]
[1718351450312,0.17,147.86,147.77,73.9738]
[1718351450510,0.17,147.86,147.82,6.15]
[1718351450732,0.17,147.86,147.81,6.15]
[1718351451036,6.32,147.86,147.81,6.15]
[1718351451408,0.17,147.86,147.81,6.15]
[1718351455108,16.200966,147.87,147.78,22.5036]
[1718351455310,16.200966,147.87,147.82,6.15]
[1718351455533,16.200966,147.87,147.78,20.0]
[1718351455852,0.17,147.86,147.78,20.0]
[1718351458736,6.32,147.86,147.78,20.0]
[1718351459239,6.32,147.85,147.75,20.32]
[1718351459439,6.49,147.84,147.78,6.15]
[1718351459623,0.17,147.83,147.78,6.15]
[1718351460331,0.17,147.83,147.79,6.15]
[1718351460530,10.050966,147.87,147.79,6.15]
[1718351460724,10.050966,147.87,147.76,42.824]
[1718351460725,6.49,147.86,147.8,6.15]
[1718351460925,0.17,147.85,147.8,6.15]
[1718351461125,45.34,147.85,147.8,6.15]
[1718351461343,6.15,147.85,147.79,6.15]
[1718351461518,0.34,147.86,147.79,6.15]
[1718351461844,6.15,147.85,147.79,6.15]
[1718351462844,6.15,147.85,147.76,42.8239]
[1718351462845,6.49,147.86,147.8,6.15]
[1718351464654,0.34,147.86,147.8,6.15]
[1718351464858,0.34,147.86,147.81,6.15]
[1718351465350,10.050966,147.87,147.83,6.15]
[1718351465929,3.581966,147.87,147.84,6.15]
[1718351466125,3.581966,147.87,147.83,6.15]
[1718351466442,3.581966,147.87,147.79,36.6186]
[1718351466646,3.581966,147.87,147.83,6.15]
[1718351467361,0.836066,147.87,147.83,6.15]
[1718351467541,0.836066,147.87,147.84,6.15]
[1718351473365,0.836066,147.87,147.8,20.32]
[1718351473668,0.836066,147.87,147.86,6.15]
[1718351474945,0.836066,147.87,147.82,20.32]
[1718351475245,0.836066,147.87,147.83,45.0]
[1718351475446,0.836066,147.87,147.86,6.15]
[1718351476352,0.836066,147.87,147.83,45.0]
[1718351476676,0.836066,147.87,147.86,6.15]
[1718351478871,0.836066,147.87,147.85,6.15]
[1718351479055,0.836066,147.87,147.83,6.15]
[1718351479257,0.836066,147.87,147.85,6.15]
[1718351483860,0.836066,147.87,147.86,6.15]
[1718351486478,0.836066,147.87,147.86,51.15]
[1718351486856,0.836066,147.87,147.86,91.47]
[1718351487055,0.836066,147.87,147.86,91.81]
[1718351487283,0.836066,147.87,147.86,94.3123]
[1718351487575,0.836066,147.87,147.86,91.81]
[1718351490576,0.836066,147.87,147.86,91.47]
[1718351491984,0.836066,147.87,147.86,71.15]
[1718351492180,0.836066,147.87,147.86,20.0]
[1718351492371,0.836066,147.87,147.86,6.15]
[1718351495787,0.836066,147.87,147.84,62.8405]
[1718351495788,0.47252466,147.87,147.84,62.8405]
[1718351496081,2.7459,147.94,147.86,6.15]
[1718351496389,2.7459,147.94,147.89,6.15]
[1718351496581,2.7459,147.94,147.85,65.0]
[1718351496785,2.7459,147.94,147.88,6.15]
[1718351496990,2.7459,147.94,147.85,65.0]
[1718351497280,0.17,147.93,147.87,6.15]
[1718351499389,6.15,147.91,147.88,1.38902862]
[1718351499890,6.15,147.9,147.88,1.38902862]
[1718351500069,48.2559,147.89,147.82,6.15]
[1718351500258,0.17,147.88,147.82,6.15]
[1718351500658,0.17,147.88,147.81,7.53968644]
[1718351500890,6.15,147.87,147.81,1.38968644]
[1718351501184,6.32,147.86,147.81,1.38968644]
[1718351501776,6.5614,147.87,147.83,6.15]
[1718351501974,0.34,147.88,147.83,6.15]
[1718351502678,6.49,147.88,147.82,6.15]
[1718351504163,2.7459,147.89,147.84,6.15]
[1718351504580,2.7459,147.89,147.85,6.15]
[1718351505702,6.5487,147.91,147.86,6.15]
[1718351505895,12.6987,147.91,147.85,6.15]
[1718351506691,0.17,147.9,147.81,21.70968644]
[1718351506896,6.66,147.9,147.84,6.15]
[1718351507480,6.66,147.9,147.85,1.38931047]
[1718351507677,0.51,147.9,147.85,1.38931047]
[1718351507894,0.51,147.9,147.85,7.53931047]
[1718351508194,6.5487,147.91,147.86,6.15]
[1718351511999,6.5487,147.91,147.87,6.15]
[1718351512294,6.5487,147.91,147.88,6.15]
[1718351514276,6.5487,147.91,147.87,6.15]
[1718351514701,6.5487,147.91,147.85,1.38931047]
[1718351514889,6.5487,147.91,147.87,6.15]
[1718351521801,2.7459,147.93,147.88,6.15]
[1718351522102,8.8959,147.93,147.88,6.15]
[1718351522301,0.17,147.92,147.87,6.15]
[1718351522480,6.15,147.92,147.87,6.15]
[1718351522805,8.8959,147.93,147.87,6.15]
[1718351523180,2.7459,147.93,147.87,6.15]
[1718351523374,2.7459,147.93,147.88,6.15]
[1718351524980,2.7459,147.93,147.85,1.38931047]
[1718351525290,2.7459,147.93,147.85,46.38931047]
[1718351528905,8.8959,147.93,147.85,46.38931047]
[1718351529982,15.75778673,147.97,147.91,6.15]
[1718351530189,15.75778673,147.97,147.88,2.5018]
[1718351530190,8.8894,147.97,147.88,22.8219]
[1718351530425,8.8894,147.97,147.92,6.15]
[1718351530893,15.0394,147.97,147.91,6.15]
[1718351531281,8.8894,147.97,147.9,6.15]
[1718351531485,6.15,147.95,147.89,6.15]
[1718351531689,0.17,147.94,147.89,6.15]
[1718351532400,6.32,147.94,147.88,6.15]
[1718351532612,6.15,147.93,147.85,1.38931047]
[1718351532790,6.15,147.93,147.87,6.15]
[1718351534098,12.6165,147.91,147.85,1.38931047]
[1718351534414,12.6165,147.91,147.86,6.15]
[1718351534593,12.6165,147.91,147.85,1.38931047]
[1718351534926,12.6165,147.91,147.86,6.15]
[1718351535310,12.6165,147.91,147.85,1.38931047]
[1718351535493,6.4665,147.91,147.85,1.38931047]
[1718351535807,6.4665,147.91,147.86,6.15]
[1718351537307,2.7459,147.92,147.87,6.15]
[1718351537509,2.7459,147.92,147.88,6.15]
[1718351538109,6.6648,147.95,147.86,2.5023]
[1718351538406,6.6648,147.95,147.9,6.15]
[1718351538611,0.17,147.94,147.9,6.15]
[1718351538783,0.17,147.94,147.89,6.15]
[1718351539389,12.8148,147.95,147.89,6.15]
[1718351540812,6.6648,147.95,147.89,6.15]
[1718351541015,12.8148,147.95,147.89,6.15]
[1718351541216,12.8148,147.95,147.85,24.21171047]
[1718351541413,12.8148,147.95,147.9,6.15]
[1718351541923,6.6648,147.95,147.9,6.15]
[1718351542331,6.6648,147.95,147.86,65.32]
[1718351542620,6.6648,147.95,147.9,6.15]
[1718351543608,12.8148,147.95,147.9,6.15]
[1718351543910,6.6648,147.95,147.9,6.15]
[1718351546502,6.6648,147.95,147.86,65.32]
[1718351546707,6.6648,147.95,147.9,6.15]
[1718351548307,6.6648,147.95,147.91,6.15]
[1718351548515,6.6648,147.95,147.86,65.32]
[1718351548815,6.6648,147.95,147.9,6.15]
[1718351549223,6.6648,147.95,147.86,65.32]
[1718351549532,6.15,147.93,147.87,6.15]
[1718351550109,6.15,147.93,147.85,1.38931047]
[1718351550334,6.15,147.93,147.87,6.15]
[1718351550622,6.15,147.93,147.85,1.38931047]
[1718351550812,6.66,147.92,147.86,6.15]
[1718351551007,0.17,147.9,147.85,1.38931047]
[1718351551328,6.15,147.87,147.81,6.15]
[1718351551532,0.17,147.86,147.81,6.15]
[1718351552106,0.17,147.89,147.83,6.15]
[1718351552333,6.66,147.89,147.83,6.15]
[1718351553320,0.51,147.89,147.83,6.15]
[1718351553627,6.66,147.89,147.84,6.15]
[1718351554720,0.51,147.89,147.84,6.15]
[1718351555027,6.66,147.89,147.83,6.15]
[1718351555436,6.15,147.88,147.82,6.15]
[1718351556625,0.51,147.87,147.8,7.53978046]
[1718351556827,6.15,147.86,147.81,1.38968644]
[1718351557022,2.7459,147.85,147.81,1.38968644]
[1718351557331,6.15,147.84,147.78,6.15]
[1718351557638,6.15,147.84,147.77,1.39006261]
[1718351557838,6.15,147.84,147.78,6.15]
[1718351558438,6.49,147.83,147.77,1.39006261]
[1718351558617,0.17,147.82,147.77,1.39006261]
[1718351558814,0.17,147.82,147.77,7.54006261]
[1718351559020,0.17,147.82,147.77,1.39006261]
[1718351559228,0.17,147.82,147.77,7.54006261]
[1718351560735,6.15,147.84,147.78,6.15]
[1718351561316,0.17,147.83,147.77,1.39006261]
[1718351561521,6.49,147.83,147.77,7.54006261]
[1718351561716,6.15,147.84,147.78,6.15]
[1718351561915,15.4362,147.85,147.79,6.15]
[1718351562126,0.17,147.84,147.79,6.15]
[1718351562333,6.32,147.84,147.78,6.15]
[1718351562528,6.32,147.84,147.79,6.15]
[1718351562725,0.17,147.84,147.79,6.15]
[1718351564232,15.2662,147.85,147.81,6.15]
[1718351564233,9.1162,147.85,147.81,6.15]
[1718351565322,6.15,147.88,147.82,6.15]
[1718351566448,0.17,147.87,147.82,6.15]
[1718351566740,0.68,147.87,147.82,6.15]
[1718351569521,8.7713,147.89,147.82,6.15]
[1718351569725,0.51,147.88,147.82,6.15]
[1718351569938,6.66,147.88,147.82,6.15]
[1718351570133,6.15,147.87,147.81,6.15]
[1718351570334,6.66,147.88,147.82,6.15]
[1718351570538,0.17,147.87,147.82,6.15]
[1718351570920,6.32,147.87,147.81,6.15]
[1718351571222,0.17,147.86,147.81,6.15]
[1718351571749,0.34,147.87,147.81,6.15]
[1718351572339,0.34,147.87,147.77,32.52566261]
[1718351572340,0.17,147.87,147.82,6.15]
[1718351573042,0.34,147.88,147.82,6.15]
[1718351573339,8.7713,147.89,147.83,6.15]
[1718351573517,14.9213,147.89,147.83,6.15]
[1718351574129,8.7713,147.89,147.84,6.15]
[1718351574657,0.17,147.88,147.84,6.15]
[1718351575742,8.7713,147.89,147.84,6.15]
[1718351577147,8.7713,147.89,147.85,6.15]
[1718351578026,8.7713,147.89,147.84,6.15]
[1718351578353,8.7713,147.89,147.85,6.15]
[1718351578843,8.7713,147.89,147.86,6.15]
[1718351579054,2.7459,147.89,147.86,6.15]
[1718351581462,2.7459,147.89,147.85,6.15]
[1718351582551,0.68,147.88,147.78,15.7694]
[1718351582753,0.68,147.88,147.81,6.15]
[1718351582940,6.4441,147.87,147.8,6.15]
[1718351583134,0.34,147.86,147.8,6.15]
[1718351583951,0.34,147.86,147.81,6.15]
[1718351584968,0.34,147.86,147.78,15.7694]
[1718351585174,0.34,147.86,147.81,6.15]
[1718351585468,0.34,147.86,147.78,15.7694]
[1718351585651,0.17,147.85,147.77,25.99006261]
[1718351585849,6.32,147.85,147.8,6.15]
[1718351586052,0.17,147.84,147.79,6.15]
[1718351586349,0.17,147.84,147.77,1.39006261]
[1718351586350,0.17,147.84,147.8,6.15]
[1718351586551,0.17,147.84,147.77,1.39006261]
[1718351586872,0.17,147.84,147.8,6.15]
[1718351587258,6.49,147.85,147.8,6.15]
[1718351587458,6.49,147.85,147.79,6.15]
[1718351588655,0.34,147.85,147.8,6.15]
[1718351589245,0.17,147.85,147.8,6.15]
[1718351589451,0.17,147.86,147.81,6.15]
[1718351589647,0.34,147.86,147.81,6.15]
[1718351589964,12.5941,147.87,147.81,6.15]
[1718351590166,12.5941,147.87,147.82,6.15]
[1718351590364,12.5941,147.87,147.77,30.36386261]
[1718351590566,12.5941,147.87,147.78,45.0]
[1718351591469,0.17,147.86,147.78,45.0]
[1718351592254,6.15,147.85,147.77,1.39006261]
[1718351592469,0.17,147.84,147.8,6.15]
[1718351593056,0.17,147.84,147.77,1.39006261]
[1718351593271,6.49,147.84,147.77,1.39006261]
[1718351593464,2.9159,147.83,147.78,6.15]
[1718351593667,0.17,147.82,147.78,6.15]
[1718351594478,0.17,147.82,147.77,1.39006261]
[1718351594658,0.17,147.82,147.78,6.15]
[1718351594858,0.17,147.82,147.77,1.39006261]
[1718351595058,0.17,147.82,147.78,6.15]
[1718351596375,0.17,147.82,147.77,1.39006261]
[1718351596580,0.17,147.82,147.78,6.15]
[1718351596880,0.17,147.82,147.77,1.39006261]
[1718351597262,6.15,147.81,147.7,56.77949423]
[1718351597559,6.32,147.8,147.74,6.15]
[1718351597811,6.15,147.8,147.74,6.15]
[1718351598581,6.66,147.79,147.73,6.15]
[1718351598786,6.49,147.79,147.73,6.15]
[1718351598989,6.49,147.79,147.74,6.15]
[1718351599168,0.17,147.79,147.75,6.15]
[1718351599488,0.17,147.8,147.75,6.15]
[1718351599660,0.34,147.8,147.75,6.15]
[1718351600967,0.33333334,147.79,147.75,6.15]
[1718351602887,0.33333334,147.79,147.71,2.5049]
[1718351603096,0.33333334,147.79,147.76,6.15]
[1718351604671,0.33333334,147.79,147.75,6.15]
[1718351604879,0.33333334,147.79,147.76,6.15]
[1718351605210,0.33333334,147.79,147.75,6.15]
[1718351614103,0.33333334,147.79,147.7,16.84342141]
[1718351614304,0.33333334,147.79,147.74,6.15]
[1718351615003,0.33333334,147.79,147.7,41.27342141]
[1718351615190,0.34,147.78,147.7,41.27342141]
[1718351615590,0.34,147.78,147.74,6.15]
[1718351615905,0.17,147.78,147.74,6.15]
[1718351616074,0.34,147.79,147.74,6.15]
[1718351616907,6.49,147.79,147.7,16.67342141]
[1718351617091,6.49,147.79,147.74,6.15]
[1718351617481,0.33333334,147.78,147.74,6.15]
[1718351621796,0.33333334,147.78,147.7,64.09832141]
[1718351621990,0.33333334,147.78,147.74,6.15]
[1718351623797,0.33333334,147.78,147.73,6.15]
[1718351624919,0.33333334,147.78,147.74,6.15]
[1718351626118,0.33333334,147.78,147.7,16.67342141]
[1718351626295,0.33333334,147.78,147.74,6.15]
[1718351628721,0.33333334,147.78,147.7,41.27342141]
[1718351628905,0.33333334,147.78,147.74,6.15]
[1718351630595,0.17,147.77,147.7,41.27342141]
[1718351630791,0.17,147.77,147.73,6.15]
[1718351631329,0.34,147.77,147.73,6.15]
[1718351631524,0.34,147.77,147.7,1.39072141]
[1718351631743,6.15,147.75,147.7,1.39072141]
[1718351631906,0.17,147.74,147.7,7.54072141]
[1718351632092,0.50333334,147.74,147.7,7.54072141]
[1718351636432,0.50333334,147.74,147.7,1.39072141]
[1718351636811,0.50333334,147.74,147.7,7.54072141]
[1718351638636,0.50333334,147.74,147.7,1.39072141]
[1718351638946,0.50333334,147.74,147.71,6.15]
[1718351640229,0.33333334,147.74,147.7,1.39072141]
[1718351640558,0.33333334,147.74,147.72,6.15]
[1718351640730,0.33333334,147.74,147.7,1.39072141]
[1718351640935,0.33333334,147.74,147.72,6.15]
[1718351643753,0.33333334,147.74,147.73,6.15]
[1718351646842,0.33333334,147.74,147.71,15.7361]
[1718351647247,0.33333334,147.74,147.73,6.15]
[1718351657463,0.33333334,147.74,147.73,51.15]
[1718351659583,0.33333334,147.74,147.73,74.3145]
[1718351659745,9.3914,147.86,147.76,19.161]
[1718351659950,9.3914,147.86,147.82,6.15]
[1718351662155,2.7459,147.86,147.82,6.15]
[1718351662360,2.7459,147.86,147.84,6.15]
[1718351663181,259.7,147.88,147.84,6.15]
[1718351663564,0.17,147.87,147.84,6.15]
[1718351664480,0.17,147.87,147.83,6.15]
[1718351665077,0.34,147.88,147.83,6.15]
[1718351665980,6.49,147.88,147.82,6.15]
[1718351667691,0.34,147.88,147.83,6.15]
[1718351669989,0.34,147.88,147.84,6.15]
[1718351671089,0.34,147.88,147.83,6.15]
[1718351671288,0.17,147.88,147.83,6.15]
[1718351672064,6.32,147.89,147.83,6.15]
[1718351672267,6.15,147.89,147.84,6.15]
[1718351673873,15.4617,147.9,147.84,6.15]